[Event "Late-Titled-Tuesday-Blitz-May-07-2024"]
[Site "Chess.com"]
[Date "2024.05.07"]
[Round "10"]
[White "mfschulz"]
[Black "dianamirza"]
[Result "1-0"]
[WhiteElo "2337"]
[BlackElo "1959"]
[TimeControl "180+1"]
[EndTime "15:55:00 PDT"]
[Termination "mfschulz won by resignation"]

1. d4 {[%clk 0:03:00.9]} 1... Nf6 {[%clk 0:02:43.8]} 2. Bg5 {[%clk 0:02:59.5]}
2... c6 {[%clk 0:02:31.6]} 3. Bxf6 {[%clk 0:02:58]} 3... exf6 {[%clk 0:02:32.5]}
4. c4 {[%clk 0:02:57.6]} 4... Bb4+ {[%clk 0:02:32.2]} 5. Nc3 {[%clk 0:02:57.4]}
5... O-O {[%clk 0:02:32.8]} 6. e3 {[%clk 0:02:57.5]} 6... d5 {[%clk 0:02:33.1]}
7. Qb3 {[%clk 0:02:55.2]} 7... Bxc3+ {[%clk 0:02:27.1]} 8. bxc3 {[%clk
0:02:54.7]} 8... dxc4 {[%clk 0:02:28]} 9. Bxc4 {[%clk 0:02:54.2]} 9... Nd7
{[%clk 0:02:26.6]} 10. Nf3 {[%clk 0:02:53.6]} 10... Nb6 {[%clk 0:02:27.2]} 11.
Bd3 {[%clk 0:02:53.2]} 11... Be6 {[%clk 0:02:27.1]} 12. c4 {[%clk 0:02:52.1]}
12... a5 {[%clk 0:02:23.5]} 13. O-O {[%clk 0:02:49.8]} 13... a4 {[%clk
0:02:23.8]} 14. Qc2 {[%clk 0:02:48.8]} 14... g6 {[%clk 0:02:22.8]} 15. a3 {[%clk
0:02:45.4]} 15... f5 {[%clk 0:02:18.5]} 16. Rab1 {[%clk 0:02:43.8]} 16... Qc7
{[%clk 0:02:17.7]} 17. Rb4 {[%clk 0:02:43]} 17... Nd7 {[%clk 0:01:51.6]} 18.
Rfb1 {[%clk 0:02:37.6]} 18... Rfb8 {[%clk 0:01:43.2]} 19. Ng5 {[%clk 0:02:35.6]}
19... h6 {[%clk 0:01:40.3]} 20. Nxe6 {[%clk 0:02:35.1]} 20... fxe6 {[%clk
0:01:41.2]} 21. c5 {[%clk 0:02:30.5]} 21... Nf6 {[%clk 0:01:39]} 22. Bc4 {[%clk
0:02:18.8]} 22... Nd5 {[%clk 0:01:37.1]} 23. Bxd5 {[%clk 0:02:18.8]} 23... exd5
{[%clk 0:01:34.4]} 24. Rxa4 {[%clk 0:02:07.5]} 24... Rxa4 {[%clk 0:01:33.4]} 25.
Qxa4 {[%clk 0:02:07.5]} 25... b5 {[%clk 0:01:30.9]} 26. cxb6 {[%clk 0:02:03.2]}
26... Rxb6 {[%clk 0:01:29.5]} 27. Rxb6 {[%clk 0:02:00.1]} 27... Qxb6 {[%clk
0:01:30]} 28. Qb4 {[%clk 0:01:59.2]} 28... Qc7 {[%clk 0:01:28.1]} 29. g3 {[%clk
0:01:59.2]} 29... Kf7 {[%clk 0:01:27.9]} 30. a4 {[%clk 0:01:56.7]} 30... Ke6
{[%clk 0:01:20.2]} 31. a5 {[%clk 0:01:56.5]} 31... Qd6 {[%clk 0:01:10.5]} 32.
Qb7 {[%clk 0:01:42.9]} 32... Qa3 {[%clk 0:00:17.9]} 33. Qxc6+ {[%clk 0:01:36.4]}
33... Kf7 {[%clk 0:00:16.4]} 34. Qxd5+ {[%clk 0:01:36.2]} 34... Ke7 {[%clk
0:00:16.2]} 35. Kg2 {[%clk 0:01:34.2]} 1-0

[Event "Late-Titled-Tuesday-Blitz-May-07-2024"]
[Site "Chess.com"]
[Date "2024.05.07"]
[Round "10"]
[White "TheDiscoOne"]
[Black "protectiago"]
[Result "1-0"]
[WhiteElo "2483"]
[BlackElo "2079"]
[TimeControl "180+1"]
[EndTime "15:55:04 PDT"]
[Termination "TheDiscoOne won on time"]

1. c4 {[%clk 0:03:00.9]} 1... c5 {[%clk 0:02:59.4]} 2. g3 {[%clk 0:02:59]} 2...
Nc6 {[%clk 0:02:58.7]} 3. Bg2 {[%clk 0:02:59.5]} 3... g6 {[%clk 0:02:52.1]} 4.
Nc3 {[%clk 0:02:58.9]} 4... Bg7 {[%clk 0:02:49.6]} 5. d3 {[%clk 0:02:59.2]} 5...
e5 {[%clk 0:02:48.8]} 6. Be3 {[%clk 0:02:58.3]} 6... d6 {[%clk 0:02:48.7]} 7.
Qd2 {[%clk 0:02:58.5]} 7... Be6 {[%clk 0:02:45.5]} 8. h4 {[%clk 0:02:58.1]} 8...
h5 {[%clk 0:02:31.9]} 9. Nf3 {[%clk 0:02:56.5]} 9... Nge7 {[%clk 0:02:16.4]} 10.
Ng5 {[%clk 0:02:56.1]} 10... Bd7 {[%clk 0:02:15.1]} 11. O-O-O {[%clk 0:02:54.4]}
11... a6 {[%clk 0:02:11.2]} 12. f4 {[%clk 0:02:52.7]} 12... O-O {[%clk
0:02:02.8]} 13. Bf3 {[%clk 0:02:43.2]} 13... Nf5 {[%clk 0:01:44.8]} 14. Rdg1
{[%clk 0:02:40.6]} 14... Nxe3 {[%clk 0:01:43.7]} 15. Qxe3 {[%clk 0:02:41.5]}
15... Nd4 {[%clk 0:01:37.4]} 16. g4 {[%clk 0:02:37.5]} 16... Nxf3 {[%clk
0:01:25]} 17. exf3 {[%clk 0:02:36.2]} 17... exf4 {[%clk 0:01:22.9]} 18. Qxf4
{[%clk 0:02:35.4]} 18... Be5 {[%clk 0:00:43.9]} 19. Qd2 {[%clk 0:02:32.3]} 19...
hxg4 {[%clk 0:00:44.1]} 20. h5 {[%clk 0:02:30.1]} 20... Qf6 {[%clk 0:00:37.5]}
21. Nd5 {[%clk 0:02:21.5]} 21... Qd8 {[%clk 0:00:27.6]} 22. f4 {[%clk
0:02:12.7]} 22... Bd4 {[%clk 0:00:25.7]} 23. hxg6 {[%clk 0:02:07.4]} 23... Bxg1
{[%clk 0:00:18.8]} 24. Rxg1 {[%clk 0:01:55.3]} 24... fxg6 {[%clk 0:00:18.6]} 25.
Qh2 {[%clk 0:01:53]} 25... Rf7 {[%clk 0:00:10.2]} 26. Nxf7 {[%clk 0:01:51.2]}
26... Kxf7 {[%clk 0:00:10.4]} 27. Qh7+ {[%clk 0:01:51.1]} 27... Kf8 {[%clk
0:00:07.9]} 28. Rh1 {[%clk 0:01:46.4]} 28... Be6 {[%clk 0:00:03.8]} 29. Qxb7
{[%clk 0:01:41.5]} 29... Rb8 {[%clk 0:00:02.6]} 30. Rh8+ {[%clk 0:01:38.5]}
30... Bg8 {[%clk 0:00:02.6]} 31. Qh7 {[%clk 0:01:37.6]} 1-0

[Event "Late-Titled-Tuesday-Blitz-May-07-2024"]
[Site "Chess.com"]
[Date "2024.05.07"]
[Round "10"]
[White "Stanbad1"]
[Black "Byniolus"]
[Result "0-1"]
[WhiteElo "2616"]
[BlackElo "2836"]
[TimeControl "180+1"]
[EndTime "15:55:08 PDT"]
[Termination "Byniolus won by resignation"]

1. d4 {[%clk 0:03:00.9]} 1... d6 {[%clk 0:02:58]} 2. Nc3 {[%clk 0:03:00.9]} 2...
Nf6 {[%clk 0:02:57.6]} 3. e4 {[%clk 0:03:00.5]} 3... c6 {[%clk 0:02:57.8]} 4.
Be3 {[%clk 0:03:00.1]} 4... Qb6 {[%clk 0:02:57.4]} 5. Rb1 {[%clk 0:02:59.8]}
5... Ng4 {[%clk 0:02:57]} 6. Bc1 {[%clk 0:02:56.5]} 6... e5 {[%clk 0:02:56.9]}
7. Nf3 {[%clk 0:02:56.3]} 7... Nd7 {[%clk 0:02:57]} 8. h3 {[%clk 0:02:56.2]}
8... Ngf6 {[%clk 0:02:57.4]} 9. Be3 {[%clk 0:02:55.8]} 9... Qc7 {[%clk 0:02:58]}
10. dxe5 {[%clk 0:02:53.1]} 10... dxe5 {[%clk 0:02:58.1]} 11. a4 {[%clk
0:02:52.7]} 11... Bc5 {[%clk 0:02:55.6]} 12. Qd2 {[%clk 0:02:50.3]} 12... O-O
{[%clk 0:02:52.4]} 13. Bxc5 {[%clk 0:02:49.7]} 13... Nxc5 {[%clk 0:02:52.1]} 14.
Qe3 {[%clk 0:02:50.2]} 14... Ne6 {[%clk 0:02:35.5]} 15. g3 {[%clk 0:02:48.6]}
15... Rd8 {[%clk 0:02:31.4]} 16. Bd3 {[%clk 0:02:47.3]} 16... Nd4 {[%clk
0:02:30.5]} 17. Nd2 {[%clk 0:02:45.7]} 17... h6 {[%clk 0:02:21.3]} 18. Ne2
{[%clk 0:02:43.8]} 18... Bxh3 {[%clk 0:02:11.9]} 19. Nxd4 {[%clk 0:02:21]} 19...
exd4 {[%clk 0:02:12.8]} 20. Qf4 {[%clk 0:01:56.3]} 20... Qd7 {[%clk 0:01:46.6]}
21. Nc4 {[%clk 0:01:53.3]} 21... Bg2 {[%clk 0:01:35.9]} 22. Rh2 {[%clk
0:01:50.7]} 22... Bxe4 {[%clk 0:01:35.7]} 23. Bxe4 {[%clk 0:01:49.9]} 23... Nxe4
{[%clk 0:01:36.6]} 24. Qxe4 {[%clk 0:01:49.2]} 24... Re8 {[%clk 0:01:35.1]} 25.
Ne5 {[%clk 0:01:49.3]} 25... Rxe5 {[%clk 0:00:30.5]} 26. Qxe5 {[%clk 0:01:48.1]}
26... Re8 {[%clk 0:00:31.2]} 27. Qxe8+ {[%clk 0:01:46.4]} 27... Qxe8+ {[%clk
0:00:32.1]} 28. Kd2 {[%clk 0:01:45.7]} 28... c5 {[%clk 0:00:32]} 29. b3 {[%clk
0:01:45.2]} 29... Qe4 {[%clk 0:00:23.9]} 30. Rh4 {[%clk 0:01:43.5]} 30... Qf3
{[%clk 0:00:22.6]} 31. Rf4 {[%clk 0:01:43]} 31... Qc3+ {[%clk 0:00:22.9]} 32.
Kd1 {[%clk 0:01:40.5]} 32... g5 {[%clk 0:00:20.8]} 33. Re4 {[%clk 0:01:29.3]}
33... Qf3+ {[%clk 0:00:16.6]} 34. Re2 {[%clk 0:01:27.2]} 34... d3 {[%clk
0:00:16.9]} 35. cxd3 {[%clk 0:01:26.2]} 35... Qxd3+ {[%clk 0:00:17.8]} 36. Rd2
{[%clk 0:01:25.7]} 36... Qxb1+ {[%clk 0:00:17.9]} 0-1

[Event "Late-Titled-Tuesday-Blitz-May-07-2024"]
[Site "Chess.com"]
[Date "2024.05.07"]
[Round "10"]
[White "RuperezA"]
[Black "djano"]
[Result "1-0"]
[WhiteElo "2656"]
[BlackElo "2536"]
[TimeControl "180+1"]
[EndTime "15:55:09 PDT"]
[Termination "RuperezA won by resignation"]

1. e4 {[%clk 0:03:00.9]} 1... c5 {[%clk 0:02:57.8]} 2. Nf3 {[%clk 0:03:00.9]}
2... g6 {[%clk 0:02:56.7]} 3. d4 {[%clk 0:03:00.8]} 3... cxd4 {[%clk 0:02:56.6]}
4. Qxd4 {[%clk 0:03:01.7]} 4... Nf6 {[%clk 0:02:56.5]} 5. Nc3 {[%clk 0:03:02.3]}
5... Nc6 {[%clk 0:02:56.6]} 6. Qa4 {[%clk 0:03:03]} 6... d6 {[%clk 0:02:55.8]}
7. e5 {[%clk 0:03:03.9]} 7... dxe5 {[%clk 0:02:56.5]} 8. Nxe5 {[%clk 0:03:04.8]}
8... Bd7 {[%clk 0:02:56.9]} 9. Nxd7 {[%clk 0:03:05.3]} 9... Nxd7 {[%clk
0:02:57.8]} 10. Bb5 {[%clk 0:03:04.2]} 10... Bg7 {[%clk 0:02:57.3]} 11. Be3
{[%clk 0:03:04.8]} 11... O-O {[%clk 0:02:57.2]} 12. O-O {[%clk 0:03:05.4]} 12...
Nb6 {[%clk 0:02:52]} 13. Qh4 {[%clk 0:03:04.9]} 13... Nd5 {[%clk 0:02:51]} 14.
Rad1 {[%clk 0:02:59.9]} 14... e6 {[%clk 0:02:50]} 15. Bg5 {[%clk 0:02:59.2]}
15... Qb6 {[%clk 0:02:42.5]} 16. Nxd5 {[%clk 0:02:46.3]} 16... exd5 {[%clk
0:02:43.4]} 17. Rxd5 {[%clk 0:02:46.4]} 17... Nb4 {[%clk 0:02:08.1]} 18. Be3
{[%clk 0:02:43.8]} 18... Qe6 {[%clk 0:01:57.4]} 19. Rc5 {[%clk 0:02:30.5]} 19...
Nc6 {[%clk 0:01:27.4]} 20. Bxc6 {[%clk 0:02:25.7]} 20... bxc6 {[%clk 0:01:27.5]}
21. b3 {[%clk 0:02:23.9]} 21... Rfe8 {[%clk 0:01:19.8]} 22. Rd1 {[%clk
0:02:19.9]} 22... Bf6 {[%clk 0:01:14.3]} 23. Qc4 {[%clk 0:02:20.1]} 23... Qe7
{[%clk 0:00:54.3]} 24. Rxc6 {[%clk 0:02:17.1]} 24... Rad8 {[%clk 0:00:54]} 25.
Rxd8 {[%clk 0:02:13.4]} 25... Qxd8 {[%clk 0:00:54.9]} 26. g3 {[%clk 0:02:10]}
26... Be5 {[%clk 0:00:33.2]} 27. Kg2 {[%clk 0:02:05.7]} 27... h5 {[%clk
0:00:33]} 28. h4 {[%clk 0:02:05.2]} 28... Qd7 {[%clk 0:00:32.7]} 29. Rxg6+
{[%clk 0:02:04.5]} 29... Kh7 {[%clk 0:00:30.8]} 30. Rg5 {[%clk 0:02:03.6]} 30...
Qb7+ {[%clk 0:00:30.4]} 31. Kh2 {[%clk 0:02:02.4]} 31... Qf3 {[%clk 0:00:28.3]}
32. Qd3+ {[%clk 0:02:00.4]} 32... Kh8 {[%clk 0:00:25.6]} 33. Qf5 {[%clk
0:01:58.8]} 33... Qxf5 {[%clk 0:00:20.7]} 34. Rxf5 {[%clk 0:01:59.7]} 34... Bc3
{[%clk 0:00:20.8]} 35. Rxh5+ {[%clk 0:01:59.7]} 35... Kg7 {[%clk 0:00:21]} 36.
Rc5 {[%clk 0:02:00]} 36... Bf6 {[%clk 0:00:19]} 37. h5 {[%clk 0:01:59.3]} 37...
a6 {[%clk 0:00:17.2]} 38. Rc6 {[%clk 0:01:58.2]} 38... Be5 {[%clk 0:00:16.8]}
39. Kg2 {[%clk 0:01:57.7]} 39... Rd8 {[%clk 0:00:16.7]} 40. g4 {[%clk 0:01:57]}
40... Rd1 {[%clk 0:00:15.9]} 41. g5 {[%clk 0:01:56.5]} 41... Ra1 {[%clk
0:00:14.3]} 42. a4 {[%clk 0:01:55.9]} 42... a5 {[%clk 0:00:14.1]} 43. Rc5 {[%clk
0:01:55.6]} 43... f6 {[%clk 0:00:12.9]} 44. Rxa5 {[%clk 0:01:49.5]} 1-0

[Event "Late-Titled-Tuesday-Blitz-May-07-2024"]
[Site "Chess.com"]
[Date "2024.05.07"]
[Round "10"]
[White "brouetoscope"]
[Black "rdarruda"]
[Result "1-0"]
[WhiteElo "2363"]
[BlackElo "2546"]
[TimeControl "180+1"]
[EndTime "15:55:13 PDT"]
[Termination "brouetoscope won by resignation"]

1. e4 {[%clk 0:03:00.9]} 1... c5 {[%clk 0:02:59.4]} 2. Nf3 {[%clk 0:02:58.5]}
2... Nc6 {[%clk 0:02:59.4]} 3. Bb5 {[%clk 0:02:58.4]} 3... g6 {[%clk 0:02:58.9]}
4. O-O {[%clk 0:02:58.5]} 4... Bg7 {[%clk 0:02:58.4]} 5. Re1 {[%clk 0:02:58.9]}
5... e5 {[%clk 0:02:58.5]} 6. Bxc6 {[%clk 0:02:58.2]} 6... bxc6 {[%clk
0:02:58.3]} 7. c3 {[%clk 0:02:57.7]} 7... Ne7 {[%clk 0:02:58]} 8. d4 {[%clk
0:02:57.1]} 8... cxd4 {[%clk 0:02:58.1]} 9. cxd4 {[%clk 0:02:58]} 9... exd4
{[%clk 0:02:58.3]} 10. Nxd4 {[%clk 0:02:58.9]} 10... O-O {[%clk 0:02:57.9]} 11.
Nc3 {[%clk 0:02:59]} 11... Qb6 {[%clk 0:02:54.8]} 12. Nb3 {[%clk 0:02:53.4]}
12... d5 {[%clk 0:02:53.4]} 13. Be3 {[%clk 0:02:29.3]} 13... Qc7 {[%clk
0:02:51.6]} 14. exd5 {[%clk 0:02:29.1]} 14... Nxd5 {[%clk 0:02:50.8]} 15. Nxd5
{[%clk 0:02:21.6]} 15... cxd5 {[%clk 0:02:51.7]} 16. Bd4 {[%clk 0:02:22.2]}
16... Be6 {[%clk 0:02:41.8]} 17. Bxg7 {[%clk 0:02:21.7]} 17... Kxg7 {[%clk
0:02:42.7]} 18. Rc1 {[%clk 0:02:21.9]} 18... Qb6 {[%clk 0:02:40.4]} 19. Qd4+
{[%clk 0:02:21.8]} 19... Kg8 {[%clk 0:02:40.8]} 20. Qxb6 {[%clk 0:02:18.8]}
20... axb6 {[%clk 0:02:41.7]} 21. a3 {[%clk 0:02:19.2]} 21... Rac8 {[%clk
0:02:34.8]} 22. f3 {[%clk 0:02:14.8]} 22... Rc4 {[%clk 0:02:30.9]} 23. Nd2
{[%clk 0:02:14.9]} 23... Rd4 {[%clk 0:02:28.1]} 24. Red1 {[%clk 0:02:15.1]}
24... Rc8 {[%clk 0:02:18.7]} 25. Rxc8+ {[%clk 0:02:14.3]} 25... Bxc8 {[%clk
0:02:19.6]} 26. Kf2 {[%clk 0:02:13.8]} 26... Bf5 {[%clk 0:02:09]} 27. Ke3 {[%clk
0:02:12.9]} 27... Rd3+ {[%clk 0:02:08.8]} 28. Ke2 {[%clk 0:02:12.8]} 28... Rd4
{[%clk 0:02:06.6]} 29. g4 {[%clk 0:02:10.7]} 29... Be6 {[%clk 0:02:01.2]} 30. b3
{[%clk 0:02:00.8]} 30... g5 {[%clk 0:01:55.5]} 31. Rc1 {[%clk 0:01:41.4]} 31...
h5 {[%clk 0:01:45.8]} 32. h3 {[%clk 0:01:40.6]} 32... hxg4 {[%clk 0:01:44.6]}
33. hxg4 {[%clk 0:01:41.5]} 33... f5 {[%clk 0:01:43.6]} 34. Rc6 {[%clk
0:01:37.9]} 34... Kf7 {[%clk 0:01:41.4]} 35. gxf5 {[%clk 0:01:36.8]} 35... Bxf5
{[%clk 0:01:42.3]} 36. Rxb6 {[%clk 0:01:37.1]} 36... Rd3 {[%clk 0:01:37.4]} 37.
a4 {[%clk 0:01:36]} 37... Rc3 {[%clk 0:01:37.9]} 38. a5 {[%clk 0:01:35.2]} 38...
Rc2 {[%clk 0:01:38]} 39. a6 {[%clk 0:01:34.3]} 39... Ra2 {[%clk 0:01:37.9]} 40.
b4 {[%clk 0:01:28.3]} 40... d4 {[%clk 0:01:34.9]} 41. b5 {[%clk 0:01:28.3]}
41... Bc8 {[%clk 0:01:27.1]} 42. Rb8 {[%clk 0:01:27.2]} 42... Bd7 {[%clk
0:01:24.1]} 43. Rb7 {[%clk 0:01:25.3]} 43... Ke6 {[%clk 0:01:24]} 44. a7 {[%clk
0:01:22.6]} 44... Bxb5+ {[%clk 0:01:22.7]} 45. Rxb5 {[%clk 0:01:22.7]} 45...
Rxa7 {[%clk 0:01:23.4]} 46. Rxg5 {[%clk 0:01:22.9]} 46... Ra3 {[%clk 0:01:22.7]}
47. Rb5 {[%clk 0:01:19]} 47... Re3+ {[%clk 0:01:22.3]} 48. Kf2 {[%clk 0:01:19]}
48... Ra3 {[%clk 0:01:23.2]} 49. Rb3 {[%clk 0:01:18.7]} 49... Ra2 {[%clk
0:01:23.3]} 50. Ke2 {[%clk 0:01:18.9]} 50... Kd5 {[%clk 0:01:23.6]} 51. Kd3
{[%clk 0:01:19.2]} 51... Ra5 {[%clk 0:01:21.8]} 52. f4 {[%clk 0:01:18.1]} 52...
Rc5 {[%clk 0:01:19.7]} 53. Nf3 {[%clk 0:01:17.4]} 53... Rc3+ {[%clk 0:01:18.8]}
54. Rxc3 {[%clk 0:01:17.2]} 54... dxc3 {[%clk 0:01:19.7]} 55. Ne1 {[%clk
0:01:12.1]} 55... Ke6 {[%clk 0:01:16.6]} 56. Ng2 {[%clk 0:01:12]} 56... Kf5
{[%clk 0:01:13]} 57. Kxc3 {[%clk 0:01:12.3]} 57... Ke4 {[%clk 0:01:13.7]} 58.
Kc4 {[%clk 0:01:11.3]} 58... Kf3 {[%clk 0:01:13.8]} 59. f5 {[%clk 0:01:11.3]}
1-0

[Event "Late-Titled-Tuesday-Blitz-May-07-2024"]
[Site "Chess.com"]
[Date "2024.05.07"]
[Round "10"]
[White "RantomOpening"]
[Black "Chessdude1987"]
[Result "1-0"]
[WhiteElo "2503"]
[BlackElo "2393"]
[TimeControl "180+1"]
[EndTime "15:55:13 PDT"]
[Termination "RantomOpening won by resignation"]

1. Nc3 {[%clk 0:02:59.8]} 1... d5 {[%clk 0:02:59]} 2. e4 {[%clk 0:02:59.9]} 2...
e6 {[%clk 0:02:59.3]} 3. Nf3 {[%clk 0:02:56.6]} 3... Nf6 {[%clk 0:02:58.6]} 4.
e5 {[%clk 0:02:54.3]} 4... Nfd7 {[%clk 0:02:59.1]} 5. d4 {[%clk 0:02:54.4]} 5...
c5 {[%clk 0:02:59.8]} 6. dxc5 {[%clk 0:02:50.5]} 6... Nc6 {[%clk 0:03:00.4]} 7.
Bd3 {[%clk 0:02:50.4]} 7... Bxc5 {[%clk 0:02:58.5]} 8. Bf4 {[%clk 0:02:49.5]}
8... f6 {[%clk 0:02:57.9]} 9. exf6 {[%clk 0:02:47.8]} 9... Nxf6 {[%clk
0:02:58.2]} 10. O-O {[%clk 0:02:48]} 10... O-O {[%clk 0:02:57.9]} 11. Bg3 {[%clk
0:02:46.7]} 11... Bd6 {[%clk 0:02:57.3]} 12. Qe2 {[%clk 0:02:46.4]} 12... Bxg3
{[%clk 0:02:55.8]} 13. hxg3 {[%clk 0:02:47.3]} 13... a6 {[%clk 0:02:40.9]} 14.
Rfe1 {[%clk 0:02:47.5]} 14... Qd6 {[%clk 0:02:38.5]} 15. Ne5 {[%clk 0:02:47]}
15... Nxe5 {[%clk 0:02:32.6]} 16. Qxe5 {[%clk 0:02:47.9]} 16... Qxe5 {[%clk
0:02:33]} 17. Rxe5 {[%clk 0:02:48.8]} 17... Ng4 {[%clk 0:02:23.9]} 18. Re2
{[%clk 0:02:38.6]} 18... Bd7 {[%clk 0:02:23.9]} 19. Rae1 {[%clk 0:02:36.7]}
19... Rae8 {[%clk 0:02:22.1]} 20. Nd1 {[%clk 0:02:31.5]} 20... Rf7 {[%clk
0:02:05.7]} 21. Ne3 {[%clk 0:02:28.8]} 21... Nf6 {[%clk 0:01:59.7]} 22. c4
{[%clk 0:02:28.6]} 22... Rc8 {[%clk 0:01:33.5]} 23. cxd5 {[%clk 0:02:27.3]}
23... exd5 {[%clk 0:01:33.6]} 24. Nf5 {[%clk 0:02:24.2]} 24... Ne4 {[%clk
0:01:09.3]} 25. Bxe4 {[%clk 0:02:22.5]} 25... Bxf5 {[%clk 0:01:08.6]} 26. Bxd5
{[%clk 0:02:21.5]} 26... Kf8 {[%clk 0:01:05.2]} 27. Bxf7 {[%clk 0:02:20.3]}
27... Kxf7 {[%clk 0:01:05.5]} 28. Re7+ {[%clk 0:02:19.8]} 28... Kf6 {[%clk
0:01:05.9]} 29. Rxb7 {[%clk 0:02:18.4]} 29... Rc2 {[%clk 0:01:04.2]} 30. Rb6+
{[%clk 0:02:13.5]} 30... Kg5 {[%clk 0:01:04]} 31. Rxa6 {[%clk 0:02:07.8]} 31...
h5 {[%clk 0:00:59.4]} 32. b4 {[%clk 0:02:00.6]} 32... h4 {[%clk 0:00:54.8]} 33.
gxh4+ {[%clk 0:01:40.1]} 33... Kxh4 {[%clk 0:00:54.8]} 34. b5 {[%clk 0:01:38.7]}
34... Rb2 {[%clk 0:00:54.2]} 35. a4 {[%clk 0:01:31.4]} 35... Bc2 {[%clk
0:00:50.8]} 36. Rc6 {[%clk 0:01:26.6]} 36... Kg5 {[%clk 0:00:47.8]} 37. Rc5+
{[%clk 0:01:24.7]} 37... Kf6 {[%clk 0:00:47.5]} 38. a5 {[%clk 0:01:24.7]} 38...
Bd3 {[%clk 0:00:46]} 39. b6 {[%clk 0:01:24.1]} 39... Rb1 {[%clk 0:00:41.1]} 40.
Rxb1 {[%clk 0:01:22.7]} 40... Bxb1 {[%clk 0:00:40.6]} 41. a6 {[%clk 0:01:20.4]}
1-0

[Event "Late-Titled-Tuesday-Blitz-May-07-2024"]
[Site "Chess.com"]
[Date "2024.05.07"]
[Round "10"]
[White "TigrVShlyape"]
[Black "Franmu14"]
[Result "1-0"]
[WhiteElo "2958"]
[BlackElo "2742"]
[TimeControl "180+1"]
[EndTime "15:55:15 PDT"]
[Termination "TigrVShlyape won by resignation"]

1. e4 {[%clk 0:03:00.9]} 1... e5 {[%clk 0:02:58.3]} 2. Nf3 {[%clk 0:02:53.8]}
2... Nc6 {[%clk 0:02:55.4]} 3. Bb5 {[%clk 0:02:53.8]} 3... a6 {[%clk 0:02:53.6]}
4. Ba4 {[%clk 0:02:53.4]} 4... Nge7 {[%clk 0:02:54.3]} 5. c3 {[%clk 0:02:50.4]}
5... g6 {[%clk 0:02:54.2]} 6. d4 {[%clk 0:02:50.2]} 6... exd4 {[%clk 0:02:55.1]}
7. cxd4 {[%clk 0:02:38.5]} 7... Bg7 {[%clk 0:02:54.2]} 8. Nc3 {[%clk 0:02:32.7]}
8... O-O {[%clk 0:02:53.5]} 9. d5 {[%clk 0:02:31.1]} 9... b5 {[%clk 0:02:53.4]}
10. Bc2 {[%clk 0:02:24]} 10... Nb4 {[%clk 0:02:50.1]} 11. Bb3 {[%clk 0:02:23.7]}
11... a5 {[%clk 0:02:49.3]} 12. a3 {[%clk 0:02:23.2]} 12... Na6 {[%clk
0:02:47.3]} 13. Nxb5 {[%clk 0:02:22.4]} 13... Nc5 {[%clk 0:02:47.3]} 14. Bc2
{[%clk 0:02:19.8]} 14... a4 {[%clk 0:02:20.3]} 15. O-O {[%clk 0:02:10.3]} 15...
Ba6 {[%clk 0:02:17.9]} 16. Nxc7 {[%clk 0:02:00.8]} 16... Bxf1 {[%clk 0:02:07.7]}
17. Nxa8 {[%clk 0:01:59.9]} 17... Bxg2 {[%clk 0:02:04.2]} 18. Kxg2 {[%clk
0:01:58.5]} 18... Qxa8 {[%clk 0:02:02.3]} 19. Be3 {[%clk 0:01:55]} 19... d6
{[%clk 0:01:48.9]} 20. Bxc5 {[%clk 0:01:51.8]} 20... dxc5 {[%clk 0:01:49.8]} 21.
Bxa4 {[%clk 0:01:50.4]} 21... Nc8 {[%clk 0:01:48.7]} 22. e5 {[%clk 0:01:46.4]}
22... Nb6 {[%clk 0:01:42.4]} 23. Bc6 {[%clk 0:01:45.2]} 23... Qc8 {[%clk
0:01:36.4]} 24. Rc1 {[%clk 0:01:41.2]} 24... Rd8 {[%clk 0:01:23.3]} 25. h3
{[%clk 0:01:34.2]} 25... Qf5 {[%clk 0:01:18]} 26. Rxc5 {[%clk 0:01:28.8]} 26...
Bxe5 {[%clk 0:01:02.1]} 27. d6 {[%clk 0:01:12.1]} 27... Rxd6 {[%clk 0:00:37.7]}
28. Qb3 {[%clk 0:01:08.1]} 28... Re6 {[%clk 0:00:23.8]} 29. Qxb6 {[%clk
0:01:01.4]} 29... Qf4 {[%clk 0:00:21.5]} 30. Rxe5 {[%clk 0:01:00.9]} 1-0

[Event "Late-Titled-Tuesday-Blitz-May-07-2024"]
[Site "Chess.com"]
[Date "2024.05.07"]
[Round "10"]
[White "betta2004"]
[Black "Kostukov_Alex"]
[Result "1-0"]
[WhiteElo "2487"]
[BlackElo "2371"]
[TimeControl "180+1"]
[EndTime "15:55:18 PDT"]
[Termination "betta2004 won on time"]

1. Nf3 {[%clk 0:03:00.9]} 1... g6 {[%clk 0:02:58.2]} 2. e3 {[%clk 0:02:58]} 2...
Bg7 {[%clk 0:02:58.3]} 3. d4 {[%clk 0:02:57.9]} 3... d6 {[%clk 0:02:58.7]} 4. b3
{[%clk 0:02:58]} 4... e5 {[%clk 0:02:58.9]} 5. dxe5 {[%clk 0:02:57.7]} 5... dxe5
{[%clk 0:02:59.8]} 6. Qxd8+ {[%clk 0:02:58]} 6... Kxd8 {[%clk 0:03:00.7]} 7. Bb2
{[%clk 0:02:58.6]} 7... f6 {[%clk 0:03:00.7]} 8. Nbd2 {[%clk 0:02:59.2]} 8...
Nd7 {[%clk 0:03:00.4]} 9. O-O-O {[%clk 0:02:59.9]} 9... c6 {[%clk 0:03:00.8]}
10. Ne4 {[%clk 0:02:59.4]} 10... Kc7 {[%clk 0:02:57.4]} 11. Nd6 {[%clk
0:02:58.7]} 11... Nh6 {[%clk 0:02:53.5]} 12. Bc4 {[%clk 0:02:55.7]} 12... Nb6
{[%clk 0:02:43.8]} 13. h3 {[%clk 0:02:41.7]} 13... Rd8 {[%clk 0:02:30.2]} 14.
Nxc8 {[%clk 0:02:32.6]} 14... Nxc4 {[%clk 0:02:23.5]} 15. Rxd8 {[%clk
0:02:31.9]} 15... Kxd8 {[%clk 0:02:18.8]} 16. Rd1+ {[%clk 0:02:28.7]} 16... Kxc8
{[%clk 0:02:09.6]} 17. bxc4 {[%clk 0:02:29.2]} 17... Kc7 {[%clk 0:02:05.7]} 18.
g4 {[%clk 0:02:28.2]} 18... Nf7 {[%clk 0:02:03.6]} 19. Nd2 {[%clk 0:02:27.2]}
19... Rd8 {[%clk 0:01:58.4]} 20. Ne4 {[%clk 0:02:27]} 20... Rxd1+ {[%clk
0:01:57.1]} 21. Kxd1 {[%clk 0:02:27.9]} 21... b6 {[%clk 0:01:52]} 22. f4 {[%clk
0:02:23.3]} 22... exf4 {[%clk 0:01:20.2]} 23. exf4 {[%clk 0:02:23]} 23... Nd6
{[%clk 0:01:10.8]} 24. Bxf6 {[%clk 0:02:03.7]} 24... Nxe4 {[%clk 0:00:59.2]} 25.
Bxg7 {[%clk 0:02:03.6]} 25... Nf2+ {[%clk 0:00:59.5]} 26. Ke2 {[%clk 0:02:04.2]}
26... Nxh3 {[%clk 0:00:57.8]} 27. Kf3 {[%clk 0:02:04]} 27... Kd7 {[%clk
0:00:19.6]} 28. Be5 {[%clk 0:02:00.1]} 28... g5 {[%clk 0:00:13.6]} 29. f5 {[%clk
0:01:53.9]} 29... Ng1+ {[%clk 0:00:13.1]} 30. Kf2 {[%clk 0:01:52.8]} 30... Nh3+
{[%clk 0:00:12.2]} 31. Kg2 {[%clk 0:01:51.1]} 31... Nf4+ {[%clk 0:00:09.1]} 32.
Bxf4 {[%clk 0:01:51.6]} 32... gxf4 {[%clk 0:00:10]} 33. Kf3 {[%clk 0:01:52.5]}
33... b5 {[%clk 0:00:07.9]} 34. cxb5 {[%clk 0:01:46.6]} 34... cxb5 {[%clk
0:00:08.8]} 35. Kxf4 {[%clk 0:01:47.3]} 35... a5 {[%clk 0:00:05.4]} 36. Ke5
{[%clk 0:01:47.1]} 36... Ke7 {[%clk 0:00:05.7]} 37. g5 {[%clk 0:01:45.4]} 37...
Kf7 {[%clk 0:00:05.6]} 38. Kd5 {[%clk 0:01:45]} 38... b4 {[%clk 0:00:01.3]} 39.
Kc4 {[%clk 0:01:44.9]} 39... Ke7 {[%clk 0:00:01.3]} 40. Kb5 {[%clk 0:01:44.9]}
40... Kd6 {[%clk 0:00:02.2]} 41. Kxa5 {[%clk 0:01:44.7]} 1-0